bitfinex-derivatives/quotes_SOLF0:USTF0_20250411
["timestamp","ask_amount","ask_price","bid_price","bid_amount"]
[1744397820693,34.54,120.1,120.07,16.23867006]
[1744397820893,34.54,120.13,120.07,16.23867006]
[1744397821398,8.3294,120.12,120.09,8.3306]
[1744397821597,0.05483462,120.11,120.09,0.06295699]
[1744397821798,0.05483462,120.11,120.09,16.30162705]
[1744397821999,0.05483462,120.11,120.09,0.06295699]
[1744397822194,0.05483462,120.11,120.09,16.30162705]
[1744397822692,0.05483462,120.11,120.1,8.33]
[1744397833312,0.05483462,120.11,120.1,18.71123827]
[1744397834107,0.05483462,120.11,120.1,10.38123827]
[1744397834415,0.05483462,120.11,120.09,18.77489526]
[1744397834606,0.05483462,120.11,120.09,10.44419526]
[1744397835515,0.05483462,120.11,120.1,8.3303]
[1744397836217,0.05483462,120.11,120.1,18.71153827]
[1744397837418,0.05483462,120.11,120.1,10.38123827]
[1744397838310,8.38453462,120.11,120.09,8.39355699]
[1744397838510,8.38453462,120.11,120.09,18.77479526]
[1744397838717,0.05483462,120.11,120.1,18.71153827]
[1744397840018,0.05483462,120.11,120.09,18.77489526]
[1744397840618,8.38453462,120.11,120.09,18.77489526]
[1744397841120,0.05483462,120.11,120.1,8.3303]
[1744397841817,8.38453462,120.11,120.09,18.77489526]
[1744397842117,0.05483462,120.11,120.09,0.06295699]
[1744397842324,44.88123827,120.1,120.02,10.38123827]
[1744397842618,10.38123827,120.07,120.02,10.38123827]
[1744397842921,34.5,120.06,120.02,10.38123827]
[1744397843123,8.3345,120.05,120.02,10.38123827]
[1744397843316,34.5,120.06,120.01,78.24229649]
[1744397843517,0.06141794,120.05,120.02,0.06047416]
[1744397844014,8.3348,120.04,120.02,0.06047416]
[1744397844927,8.39551794,120.05,120.02,0.06047416]
[1744397845623,8.39551794,120.05,120.02,8.39597416]
[1744397846021,8.3346,120.04,120.02,8.39597416]
[1744397846225,8.3346,120.04,120.02,0.06047416]
[1744397846521,34.5,120.03,119.95,4.4902]
[1744397846725,34.5,120.03,119.97,8.3388]
[1744397847025,34.5,120.03,119.95,20.73249649]
[1744397847222,8.3364,120.02,119.95,20.73249649]
[1744397847426,34.5,120.03,119.98,8.3382]
[1744397847621,0.05288537,120.0,119.97,16.30208194]
[1744397847922,0.05288537,120.0,119.99,8.338]
[1744397848528,8.39018537,120.0,119.97,24.64108194]
[1744397848721,0.05288537,120.0,119.97,0.05978545]
[1744397849122,8.39038537,120.0,119.97,8.39878545]
[1744397849327,8.39038537,120.0,119.97,70.39878545]
[1744397849518,0.05288537,120.0,119.97,62.05978545]
[1744397849718,0.05288537,120.0,119.98,8.3386]
[1744397849920,0.05288537,120.0,119.97,62.05978545]
[1744397850326,8.39058537,120.0,119.97,70.39878545]
[1744397851026,50.79518186,120.0,119.97,0.05978545]
[1744397851527,8.3397,119.97,119.91,50.74229649]
[1744397851729,34.5,120.0,119.93,16.24229649]
[1744397852025,42.8378,120.0,119.96,8.3397]
[1744397852216,42.8378,120.0,119.95,16.24229649]
[1744397852421,0.05801824,119.99,119.96,0.06170139]
[1744397852622,0.05801824,119.99,119.95,16.24229649]
[1744397852823,0.05801824,119.99,119.96,0.05902112]
[1744397853125,0.05801824,119.99,119.97,8.3388]
[1744397853930,8.39611824,119.99,119.97,8.3388]
[1744397854132,8.39611824,119.99,119.97,70.3388]
[1744397854633,8.3387,119.98,119.96,0.05902112]
[1744397856326,0.05801824,119.99,119.96,0.05902112]
[1744397856933,0.05801824,119.99,119.97,8.3391]
[1744397857533,0.05801824,119.99,119.98,62.0]
[1744397857931,8.39611824,119.99,119.97,8.3391]
[1744397859232,8.3393,119.98,119.96,0.05902112]
[1744397859531,0.05801824,119.99,119.96,0.05902112]
[1744397859730,8.339,119.98,119.96,0.05902112]
[1744397860435,8.339,119.98,119.96,8.39902112]
[1744397860734,8.339,119.98,119.96,0.05902112]
[1744397862035,8.39631824,119.99,119.96,8.39862112]
[1744397862335,0.05801824,119.99,119.96,8.39862112]
[1744397862536,8.3388,119.98,119.96,8.39862112]
[1744397862837,8.3388,119.98,119.96,0.05902112]
[1744397863337,8.3388,119.98,119.97,10.40551619]
[1744397864135,8.39631824,119.99,119.97,10.40551619]
[1744397864637,0.05801824,119.99,119.97,10.40551619]
[1744397866237,8.39641824,119.99,119.97,10.40551619]
[1744397866930,0.05801824,119.99,119.97,18.74471619]
[1744397867440,0.05801824,119.99,119.97,10.40551619]
[1744397867639,8.39611824,119.99,119.97,10.40551619]
[1744397868038,8.39611824,119.99,119.96,70.39852112]
[1744397868241,8.39611824,119.99,119.97,10.40551619]
[1744397869237,0.05801824,119.99,119.97,18.74481619]
[1744397869434,0.05801824,119.99,119.98,10.40551619]
[1744397870044,0.05801824,119.99,119.98,18.74421619]
[1744397870340,34.5,120.03,119.98,10.40551619]
[1744397870540,34.5,120.03,120.0,10.40551619]
[1744397871041,34.5,120.03,119.99,18.74321619]
[1744397871235,0.06198318,120.02,120.0,0.05962993]
[1744397871436,8.3366,120.01,120.0,0.05962993]
[1744397872843,8.39818318,120.02,120.0,0.05962993]
[1744397874848,8.3366,120.01,120.0,0.05962993]
[1744397876851,8.39818318,120.02,120.0,18.80244612]
[1744397877547,8.39818318,120.02,120.0,0.05962993]
[1744397877747,0.06198318,120.02,120.0,10.46514612]
[1744397878148,0.06198318,120.02,120.0,8.39652993]
[1744397878349,8.39838318,120.02,120.0,10.46514612]
[1744397878648,0.06198318,120.02,120.0,0.05962993]
[1744397879551,8.3366,120.01,120.0,0.05962993]
[1744397879745,10.40551619,120.01,119.96,10.40551619]
[1744397879946,34.5,120.0,119.96,10.40551619]
[1744397880151,8.339,119.98,119.96,18.74521619]
[1744397880941,8.39920166,119.98,119.96,18.80935575]
[1744397881152,0.06020166,119.98,119.96,18.80935575]
[1744397882263,0.06020166,119.98,119.97,10.40551619]
[1744397882464,0.06020166,119.98,119.97,18.74491619]
[1744397882765,0.06020166,119.98,119.97,80.74491619]
[1744397883264,34.5,120.03,120.0,8.3373]
[1744397883466,34.5,120.03,120.0,18.74281619]
[1744397883762,8.3366,120.01,120.0,10.40551619]
[1744397883962,8.3366,120.01,119.99,18.74321619]
[1744397884365,8.39121398,120.01,119.99,18.80683212]
[1744397884557,8.39121398,120.01,119.99,8.40131593]
[1744397884758,8.39121398,120.01,119.99,18.80683212]
[1744397885365,42.8373,120.0,119.99,0.06361593]
[1744397887060,42.84,120.0,119.93,10.40551619]
[1744397887264,10.40551619,119.97,119.91,10.40551619]
[1744397887467,8.3419,119.94,119.91,10.40551619]
[1744397887970,8.3419,119.94,119.92,8.3426]
[1744397888264,8.40102548,119.94,119.92,8.3426]
[1744397888860,0.05912548,119.94,119.92,10.40551619]
[1744397889259,42.8405,119.96,119.95,8.3408]
[1744397889260,34.5,119.96,119.95,8.3408]
[1744397889462,34.5,119.99,119.94,16.26522498]
[1744397889969,42.8383,119.99,119.97,8.3392]
[1744397890463,42.89371207,119.99,119.97,8.39711319]
[1744397891270,42.89371207,119.99,119.97,0.05791319]
[1744397891669,8.3387,119.98,119.97,0.05791319]
[1744397891965,34.55541207,119.99,119.97,8.39721319]
[1744397892173,42.89381207,119.99,119.97,0.05791319]
[1744397893870,8.3387,119.98,119.97,0.05791319]
[1744397894372,42.89371207,119.99,119.97,0.05791319]
[1744397894572,34.55541207,119.99,119.97,0.05791319]
[1744397895867,34.55541207,119.99,119.97,8.39701319]
[1744397897170,42.89351207,119.99,119.97,8.39701319]
[1744397898172,34.55541207,119.99,119.98,8.3387]
[1744397899367,0.05541207,119.99,119.98,8.3387]
[1744397909279,0.05541207,119.99,119.97,0.05791319]
[1744397909868,8.3387,119.98,119.97,0.05791319]
[1744397910467,8.3387,119.98,119.97,0.00673178]
[1744397910671,8.3413,119.95,119.91,68.4953]
[1744397911380,8.3413,119.95,119.92,8.3425]
[1744397911675,268.9203696,120.09,119.94,16.26522498]
[1744397911868,63.57135544,120.06,119.99,8.3376]
[1744397912275,8.3356,120.03,119.99,8.3376]
[1744397912774,8.3356,120.03,120.0,8.3371]
[1744397913079,29.15419518,120.02,120.0,8.39401143]
[1744397914383,29.15419518,120.02,120.0,0.05691143]
[1744397914982,29.15419518,120.02,120.01,8.3366]
[1744397916279,0.06283974,120.02,120.01,8.3366]
[1744397916881,8.39903974,120.02,120.0,0.05691143]
[1744397917385,0.06283974,120.02,120.0,8.39391143]
[1744397918079,8.39873974,120.02,120.0,8.39391143]
[1744397919483,0.06283974,120.02,120.0,8.39391143]
[1744397919789,0.06283974,120.02,120.01,8.3366]
[1744397920784,84.16806472,120.02,119.87,355.0]
[1744397921084,16.26522498,119.95,119.88,2.1349]
[1744397921279,34.48,119.94,119.87,8.3459]
[1744397921592,16.26522498,119.92,119.87,8.3459]
[1744397921885,34.54158142,119.91,119.88,0.05608744]
[1744397922280,34.54158142,119.91,119.88,8.40158744]
[1744397922689,34.54158142,119.91,119.88,70.40158744]
[1744397923689,34.54158142,119.91,119.89,8.3448]
[1744397923983,0.06158142,119.91,119.89,8.3448]
[1744397926990,8.40518142,119.91,119.88,70.40148744]
[1744397928491,8.40518142,119.91,119.89,8.3449]
[1744397930090,0.06158142,119.91,119.88,0.05608744]
[1744397930786,8.3448,119.9,119.88,0.05608744]
[1744397930982,34.52158142,119.91,119.88,0.05608744]
[1744397931493,8.3449,119.89,119.88,0.05608744]
[1744397935493,34.52158142,119.91,119.88,0.05608744]
[1744397935794,34.46,119.9,119.88,0.05608744]
[1744397936397,50.72522498,119.9,119.88,0.05608744]
[1744397937287,8.3449,119.89,119.88,0.05608744]
[1744397939297,42.8046,119.9,119.88,0.05608744]
[1744397940900,8.3449,119.89,119.88,0.05608744]
[1744397943205,42.8047,119.9,119.88,0.05608744]
[1744397943502,34.46,119.9,119.88,8.40138744]
[1744397943710,34.46,119.9,119.88,0.05608744]
[1744397944206,34.46,119.9,119.89,8.3449]
[1744397945608,8.40528142,119.91,119.89,8.3449]
[1744397945800,0.06158142,119.91,119.89,4.3524]
[1744397947318,8.40548142,119.91,119.89,12.697]
[1744397947606,0.06158142,119.91,119.89,4.3524]
[1744397947908,0.06158142,119.91,119.9,8.3442]
[1744397948214,0.06158142,119.91,119.89,4.3524]
[1744397948410,0.06158142,119.91,119.9,8.3442]
[1744397952204,8.40548142,119.91,119.89,12.697]
[1744397954123,0.06158142,119.91,119.9,8.3442]
[1744397954621,34.44,119.94,119.89,4.3524]
[1744397954822,34.44,119.94,119.91,8.3432]
[1744397955218,34.44,119.94,119.89,4.3524]
[1744397955625,8.39991185,119.93,119.91,8.3435]
[1744397956628,0.05741185,119.93,119.91,8.3435]
[1744397956926,0.05741185,119.93,119.9,0.05355967]
[1744397957127,0.05741185,119.93,119.92,8.3428]
[1744397959130,34.44,119.98,119.92,16.26522498]
[1744397959622,42.7791,119.98,119.92,16.26522498]
[1744397959826,34.44,119.98,119.92,16.26522498]
[1744397960029,42.779,119.98,119.92,16.26522498]
[1744397960229,0.05430025,119.96,119.95,8.3408]
[1744397962934,0.05430025,119.96,119.95,70.3408]
[1744397964135,0.05430025,119.96,119.95,8.3408]
[1744397966238,8.39460025,119.96,119.94,8.39600605]
[1744397966539,0.05430025,119.96,119.94,0.05480605]
[1744397966728,34.44,119.95,119.94,0.05480605]
[1744397967036,42.7808,119.95,119.94,0.05480605]
[1744397967436,34.44,119.95,119.89,4.3524]
[1744397967737,8.3436,119.91,119.89,12.6971]
[1744397968237,42.7832,119.92,119.9,8.3442]
[1744397968541,42.84034811,119.92,119.9,8.40247056]
[1744397968939,8.3435,119.91,119.9,0.05827056]
[1744397969140,34.49714811,119.92,119.9,0.05827056]
[1744397969435,42.84034811,119.92,119.9,8.40227056]
[1744397969640,34.49714811,119.92,119.9,8.40227056]
[1744397970029,42.84034811,119.92,119.9,8.40227056]
[1744397971144,34.49714811,119.92,119.91,8.3435]
[1744397972043,34.49714811,119.92,119.9,8.40207056]
[1744397972446,0.05714811,119.92,119.91,8.3435]
[1744397972833,34.44,119.95,119.9,18.45309554]
[1744397973239,8.3417,119.94,119.9,18.45309554]
[1744397973547,34.44,119.95,119.92,8.3425]
[1744397973743,42.7813,119.95,119.92,8.3425]
[1744397974044,42.83855035,119.95,119.92,8.3425]
[1744397974244,42.83835035,119.95,119.92,8.3425]
[1744397974544,34.49725035,119.95,119.92,8.3425]
[1744397975446,42.83865035,119.95,119.92,8.3425]
[1744397975637,42.83865035,119.95,119.9,18.45309554]
[1744397975638,34.49725035,119.95,119.9,18.45309554]
[1744397975838,0.05725035,119.95,119.9,18.45309554]
[1744397976249,0.05725035,119.95,119.94,8.3415]
[1744397977245,8.39805035,119.95,119.93,8.40101359]
[1744397978146,8.39805035,119.95,119.94,8.3415]
[1744397978147,0.05725035,119.95,119.94,8.3415]
[1744397980845,0.05725035,119.95,119.93,8.40081359]
[1744397981037,8.39805035,119.95,119.93,8.40081359]
[1744397981647,8.3415,119.94,119.93,0.05921359]
[1744397982043,34.49725035,119.95,119.93,0.05921359]
[1744397982347,8.3415,119.94,119.93,0.05921359]
[1744397985749,34.49725035,119.95,119.81,34.4]
[1744397985750,50.7719676,119.95,119.81,34.4]
[1744397985946,16.27471725,119.93,119.85,4.3686]
[1744397986139,34.4,119.92,119.86,8.3467]
[1744397986345,34.4,119.92,119.85,4.3686]
[1744397986647,34.4,119.92,119.86,16.27471725]
[1744397986845,0.06177469,119.9,119.87,0.05460802]
[1744397987546,8.40637469,119.9,119.87,8.40070802]
[1744397988550,8.40637469,119.9,119.88,8.3455]
[1744397988743,8.40637469,119.9,119.88,70.3455]
[1744397989244,0.06177469,119.9,119.89,8.3449]
[1744397996851,8.3432,119.92,119.9,8.3436]
[1744397997155,34.4,119.94,119.88,80.38201725]
[1744397997657,42.742,119.94,119.91,8.343]
[1744397997951,42.742,119.94,119.91,8.39806917]
[1744397998159,42.79862989,119.94,119.91,8.39806917]
[1744398000061,8.3423,119.93,119.91,8.39806917]
[1744398000759,8.3428,119.92,119.91,0.05506917]
[1744398001360,34.45662989,119.94,119.91,0.05506917]
[1744398001859,8.3423,119.93,119.91,8.39836917]
[1744398002355,0.05662989,119.94,119.91,0.05506917]
[1744398002653,0.05662989,119.94,119.93,8.3421]
[1744398003461,0.05662989,119.94,119.91,2.25876917]
[1744398004058,8.39842989,119.94,119.92,8.3428]
[1744398006259,34.45662989,119.94,119.91,0.05506917]
[1744398006652,8.3421,119.93,119.91,8.39856917]
[1744398006852,8.3421,119.93,119.91,0.05506917]
[1744398007461,34.45662989,119.94,119.91,0.05506917]
[1744398007761,8.3427,119.93,119.91,0.05506917]
[1744398008363,8.3428,119.92,119.91,0.05506917]
[1744398009567,34.45662989,119.94,119.91,0.05506917]
[1744398010662,8.3423,119.93,119.91,0.05506917]
[1744398010966,0.05662989,119.94,119.91,0.05506917]
[1744398011667,0.05662989,119.94,119.92,10.41471447]
[1744398012062,0.05662989,119.94,119.93,8.3421]
[1744398012468,0.05662989,119.94,119.92,18.75721447]
[1744398012767,0.05662989,119.94,119.93,62.0]
[1744398013365,0.05662989,119.94,119.93,80.75681447]
[1744398014174,42.7396,119.97,119.95,8.3406]
[1744398014469,8.339,119.98,119.95,10.41471447]
[1744398014773,34.36,120.0,119.97,10.41471447]
[1744398015173,10.41471447,119.99,119.94,20.99261447]
[1744398015369,10.41471447,119.98,119.97,0.05393655]
[1744398015675,10.41471447,119.98,119.92,10.41471447]
[1744398015871,8.3417,119.94,119.92,18.75711447]
[1744398016076,44.77471447,119.97,119.92,18.75711447]
[1744398016375,44.77471447,119.97,119.92,10.41471447]
[1744398016576,0.05618991,119.96,119.93,0.05275403]
[1744398016985,8.341,119.95,119.93,8.39455403]
[1744398017181,8.341,119.95,119.93,0.05275403]
[1744398017486,8.3413,119.95,119.93,0.05275403]
[1744398018287,0.05618991,119.96,119.93,0.05275403]
[1744398018487,0.05618991,119.96,119.94,62.0]
[1744398019984,0.05618991,119.96,119.95,8.3408]
[1744398020180,15.46,119.99,119.94,78.27068751]
[1744398020485,15.46,119.99,119.96,16.27068751]
[1744398020886,15.46,119.99,119.96,18.53468751]
[1744398021087,38.68,120.0,119.99,8.338]
[1744398021694,34.36,120.0,119.99,8.338]
[1744398022789,7.01309285,120.01,120.0,8.3373]
[1744398022987,0.05309285,120.01,120.0,8.3373]
[1744398023189,0.05309285,120.01,119.98,0.0559527]
[1744398023890,0.05309285,120.01,119.99,8.3377]
[1744398024692,0.05309285,120.01,119.98,16.32664021]
[1744398025186,0.05309285,120.01,120.0,8.3373]
[1744398025585,0.05309285,120.01,120.0,24.60798751]
[1744398026682,0.05309285,120.01,120.0,8.3373]
[1744398027294,0.05309285,120.01,119.99,8.3376]
[1744398028889,0.05309285,120.01,120.0,8.3373]
[1744398029696,0.05309285,120.01,119.98,0.0559527]
[1744398030496,8.338,119.99,119.98,0.0559527]
[1744398030698,42.698,119.99,119.98,0.0559527]
[1744398032298,34.36,119.99,119.98,8.3946527]
[1744398032705,0.05309285,120.01,119.98,0.0559527]
[1744398032905,0.05309285,120.01,120.0,8.3373]
[1744398033198,0.05309285,120.01,119.98,0.0559527]
[1744398034200,8.3377,120.0,119.98,8.3945527]
[1744398034600,0.05309285,120.01,119.98,0.0559527]
[1744398034797,8.38989285,120.01,119.99,8.3375]
[1744398035202,0.05309285,120.01,119.99,8.3375]
[1744398035399,0.05309285,120.01,120.0,8.3373]
[1744398037907,65.0041,120.05,120.02,8.3353]
[1744398038300,42.6941,120.05,120.02,8.3353]
[1744398038604,34.36,120.05,120.02,16.27068751]
[1744398038902,6.95,120.07,120.05,8.3337]
[1744398039205,0.06320987,120.07,120.05,8.3905792]
[1744398040602,0.06320987,120.07,120.05,0.0568792]
[1744398040901,0.06320987,120.07,120.06,8.3331]
[1744398046905,0.06320987,120.07,120.05,0.0568792]
[1744398046906,34.3,120.11,120.08,8.3311]
[1744398047203,34.3,120.11,120.04,20.76208751]
[1744398048010,8.332,120.08,120.06,8.39404682]
[1744398048707,50.57068751,120.08,120.06,0.06134682]
[1744398049303,34.3,120.08,120.06,0.06134682]
[1744398050113,8.3324,120.07,120.06,0.06134682]
[1744398050314,34.3,120.08,120.06,0.06134682]
[1744398050511,42.6322,120.08,120.06,0.06134682]
[1744398050713,34.3,120.08,120.06,0.06134682]
[1744398051517,42.6322,120.08,120.06,8.39434682]
[1744398052117,42.6322,120.08,120.06,0.06134682]
[1744398052418,34.3,120.08,120.06,0.06134682]
[1744398052717,42.6322,120.08,120.06,8.39414682]
[1744398054716,34.3,120.08,120.07,8.3324]
[1744398055422,0.06029934,120.09,120.07,8.3324]
[1744398055620,0.06029934,120.09,120.08,8.3317]
[1744398056024,8.39129934,120.09,120.06,0.06134682]
[1744398056322,8.39129934,120.09,120.07,8.332]
[1744398056718,0.06029934,120.09,120.06,0.06134682]
[1744398057022,0.06029934,120.09,120.07,8.3319]
[1744398057918,8.39139934,120.09,120.07,8.3319]
[1744398059826,0.06029934,120.09,120.08,8.3317]
[1744398060418,8.39159934,120.09,120.07,8.3321]
[1744398060613,0.06029934,120.09,120.06,0.06134682]
[1744398061319,16.33098685,120.09,120.06,0.06134682]
[1744398061618,16.27068751,120.07,119.99,18.51078751]
[1744398061819,16.27068751,120.05,119.97,16.27068751]
[1744398062021,16.27068751,120.03,119.96,6.6303]
[1744398062219,16.27068751,120.01,119.93,16.27068751]
[1744398062419,34.3,120.0,119.93,16.27068751]
[1744398062622,0.05500057,119.98,119.96,8.3396]
[1744398062818,599.72,120.04,119.97,16.27068751]
[1744398063026,34.3,120.03,119.97,16.27068751]
[1744398063218,34.3,120.03,119.98,4.3947]
[1744398063415,42.6358,120.03,120.0,8.3372]
[1744398063618,34.3,120.03,119.98,4.3947]
[1744398063819,34.3,120.03,119.98,6.6303]
[1744398064019,0.06033008,120.02,119.99,16.32435328]
[1744398064422,0.06033008,120.02,120.0,62.0]
[1744398065123,8.39653008,120.02,119.99,8.39106577]
[1744398065322,0.06033008,120.02,119.99,0.05366577]
[1744398065620,0.06033008,120.02,120.0,8.3369]
[1744398066828,8.39653008,120.02,120.0,8.3369]
[1744398067526,8.337,120.01,119.99,0.05366577]
[1744398068327,8.39663008,120.02,119.99,0.05366577]
[1744398068534,0.06033008,120.02,119.99,16.32435328]
[1744398068832,0.06033008,120.02,120.0,8.3366]
[1744398069132,0.06033008,120.02,119.99,16.32435328]
[1744398069430,0.06033008,120.02,120.0,8.3369]
[1744398069926,0.06033008,120.02,119.99,16.32435328]
[1744398070530,15.3,120.04,119.99,16.32435328]
[1744398070734,15.3,120.04,120.01,16.27068751]
[1744398071133,15.3,120.04,120.03,8.3352]
[1744398071525,34.3,120.06,120.03,16.27068751]
[1744398071831,0.05961033,120.06,120.05,16.27068751]
[1744398072133,34.3,120.09,120.05,16.27068751]
[1744398072333,34.3,120.09,120.07,8.3321]
[1744398072634,34.3,120.09,120.05,78.27068751]
[1744398072834,8.3322,120.08,120.05,8.3334]
[1744398073133,34.3,120.09,120.05,16.33434251]
[1744398073332,34.3,120.09,120.07,8.3319]
[1744398073533,34.3,120.09,120.05,16.33434251]
[1744398073729,35.26,120.12,120.07,16.27068751]
[1744398073930,43.5892,120.12,120.09,8.3307]
[1744398074130,35.26,120.12,120.08,0.05425239]
[1744398074433,8.33,120.11,120.08,8.38565239]
[1744398074627,35.26,120.12,120.08,0.05425239]
[1744398075034,43.5893,120.12,120.09,8.3307]
[1744398075335,35.26,120.12,120.09,8.3307]
[1744398075833,8.3298,120.11,120.08,70.38555239]
[1744398077039,8.3307,120.1,120.08,62.05425239]
[1744398077226,35.26,120.12,120.08,62.05425239]
[1744398077227,34.26,120.09,120.08,0.05425239]
[1744398078435,42.591,120.09,120.08,0.05425239]
[1744398078734,34.26,120.09,120.03,2.0917]
[1744398078932,8.3334,120.06,120.03,10.4263]
[1744398079531,8.3334,120.06,120.03,2.0917]
[1744398079735,0.06301267,120.06,120.04,8.3345]
[1744398081040,8.39641267,120.06,120.03,10.48318947]
[1744398081334,8.39641267,120.06,120.03,2.14838947]
[1744398081636,8.39641267,120.06,120.03,10.48318947]
[1744398082739,0.06301267,120.06,120.04,8.3344]
[1744398082939,0.06301267,120.06,120.03,0.05668947]
[1744398083437,8.39641267,120.06,120.03,0.05668947]
[1744398083739,8.39641267,120.06,120.03,8.39128947]
[1744398083949,8.3338,120.05,120.03,8.39128947]
[1744398084327,0.06301267,120.06,120.03,8.39128947]
[1744398084639,0.06301267,120.06,120.03,16.32737698]
[1744398085338,0.06301267,120.06,120.04,8.3339]
[1744398085546,0.06301267,120.06,120.03,16.32737698]
[1744398086138,8.39611267,120.06,120.04,62.0]
[1744398086435,0.06301267,120.06,120.03,16.32737698]
[1744398086740,8.3345,120.04,120.03,0.05668947]
[1744398086935,34.26,120.04,119.97,18.52478751]
[1744398087133,34.26,120.04,119.97,10.5932]
[1744398087441,34.26,120.04,119.97,18.52478751]
[1744398087739,34.26,120.04,119.99,16.27068751]
[1744398087943,34.26,120.04,120.0,0.05358451]
[1744398088238,8.3366,120.01,120.0,0.05358451]
[1744398088435,42.5966,120.01,120.0,0.05358451]
[1744398090146,34.26,120.01,120.0,0.05358451]
[1744398091146,42.5966,120.01,120.0,0.05358451]
[1744398093641,34.26,120.01,120.0,0.05358451]
[1744398093945,0.06374601,120.03,120.0,16.32427202]
[1744398094351,0.06374601,120.03,120.02,24.60658751]
[1744398094541,34.26,120.07,120.02,16.27068751]
[1744398094735,42.593,120.07,120.04,24.60488751]
[1744398094940,29.09135544,120.09,120.04,16.27068751]
[1744398095138,29.09135544,120.09,120.06,16.27068751]
[1744398095443,29.09135544,120.09,120.04,2.1487]
[1744398095656,29.14945162,120.09,120.06,16.33349298]
[1744398095950,29.14945162,120.09,120.07,8.3321]
[1744398096141,29.14945162,120.09,120.06,0.06280547]
[1744398096343,42.5921,120.08,120.06,0.06280547]
[1744398097043,34.26,120.08,120.06,0.06280547]
[1744398097550,8.3324,120.07,120.06,0.06280547]
[1744398099050,8.3349,120.04,120.01,66.4291]
[1744398099449,8.3349,120.04,120.01,74.7653]
[1744398099652,8.3349,120.04,120.01,66.4291]
[1744398100241,8.39565439,120.04,120.01,4.4913949]
[1744398101053,8.39565439,120.04,120.02,8.3358]
[1744398101255,0.06075439,120.04,120.02,16.27068751]
[1744398101753,0.06075439,120.04,120.03,8.3352]
[1744398102055,0.06075439,120.04,120.02,16.27068751]
[1744398102254,8.3355,120.03,120.01,2.1837949]
[1744398102455,0.06075439,120.04,120.01,0.0622949]
[1744398102753,8.3359,120.02,120.01,0.0622949]
[1744398102953,42.5959,120.02,120.01,0.0622949]
[1744398103657,34.26,120.02,120.01,0.0622949]
[1744398104051,0.06075439,120.04,120.02,8.3358]
[1744398104252,0.06075439,120.04,120.01,16.33298241]
[1744398104656,0.06075439,120.04,120.03,8.3352]
[1744398104854,0.06075439,120.04,120.01,16.33298241]
[1744398105258,0.06075439,120.04,120.02,8.3354]
[1744398105561,0.06075439,120.04,120.01,16.33298241]
[1744398105860,0.06075439,120.04,120.02,8.3359]
[1744398106558,0.06075439,120.04,120.03,8.3352]
[1744398107261,11.28,120.05,120.04,8.3345]
[1744398107453,7.7998,120.05,120.04,70.3345]
[1744398107649,3.4799,120.05,120.04,70.3345]
[1744398107858,34.24,120.08,120.06,8.3329]
[1744398108359,34.29963061,120.08,120.06,8.39654939]
[1744398109661,34.29963061,120.08,120.06,0.06364939]
[1744398110258,0.05963061,120.08,120.06,0.06364939]
[1744398110459,0.05963061,120.08,120.07,16.27068751]
[1744398110759,21.06,120.1,120.08,8.3314]
[1744398112062,29.3904,120.1,120.08,8.3314]
[1744398112258,21.06,120.1,120.07,16.27068751]
[1744398112467,21.06,120.1,120.09,16.27068751]
[1744398112855,0.96,120.11,120.1,8.3303]
[1744398116359,0.96,120.11,120.1,24.60098751]
[1744398116559,0.96,120.11,120.1,8.3303]
[1744398118868,0.96,120.11,120.1,24.60098751]
[1744398119062,18.59,120.13,120.11,8.3293]
[1744398120266,18.59,120.13,120.12,24.59968751]
[1744398120466,34.22,120.17,120.12,16.27068751]
[1744398120669,601.679,120.2,120.12,16.27068751]
[1744398120964,34.22,120.17,120.13,0.05625041]
[1744398121368,8.327,120.15,120.13,8.38425041]
[1744398121667,50.49068751,120.17,120.13,0.05625041]
[1744398121859,8.3276,120.14,120.13,0.05625041]
[1744398122061,42.5476,120.14,120.13,0.05625041]
[1744398123367,8.33,120.11,120.08,18.46898751]
[1744398123569,34.22,120.11,120.04,78.27068751]
[1744398123768,34.22,120.11,120.06,8.3326]
[1744398123964,34.22,120.11,120.04,78.27068751]
[1744398124166,34.22,120.11,120.06,16.27068751]
[1744398124576,0.05679231,120.1,120.08,8.3311]
[1744398124967,0.05679231,120.1,120.08,16.27068751]
[1744398125167,34.22,120.13,120.08,16.27068751]
[1744398125367,42.5479,120.14,120.1,16.27068751]